Cogmind - Beta 15 @@@ ROGUE MODE // 2025.10.12 @ 16:49:12 Player: Comet Result: Destroyed by CH-MHD(R) with Subdweller Machine Gun Performance ------------- Evolutions (0) 0 Regions Visited (2) 400 Robots Destroyed (25) 125 Value Destroyed (716) 716 Prototype IDs (0) 0 Alien Tech Used (0) 0 Bonus (0) 0 TOTAL SCORE: 1241 Bonus ------- None Cogmind --------- Core Integrity 0/250 Matter 300/300 Energy 232/250 System Corruption 0% Temperature Cool (1) Movement Rolling (110) Location -10/Subcaves Parts ------- > --- POWER (1) -------- Ion Engine > --- PROPULSION (2) --- Subdweller Monowheel Subdweller Monowheel > --- UTILITY (2) ------ Medium Storage Unit Core Shielding > --- WEAPON (2) ------- Particle Gun Subdweller Laser > --- INVENTORY (10) --- Heat Sink Medium Storage Unit Medium Storage Unit Small Matter Pod (50) Core Shielding Subdweller Laser Light Assault Rifle Grenade Launcher Mining Claw Peak State ------------ > --- POWER ------------ Ion Engine > --- PROPULSION ------- Subdweller Monowheel Subdweller Monowheel > --- UTILITY ---------- Medium Storage Unit Core Shielding > --- WEAPON ----------- Particle Gun Subdweller Laser > --- INVENTORY -------- Heat Sink Medium Storage Unit Medium Storage Unit Small Matter Pod Core Shielding Subdweller Laser Light Assault Rifle Grenade Launcher Mining Claw [Rating: 12] Favorites ----------- Power Ion Engine Engine Ion Engine Power Core Light Nuclear Core Propulsion Light Treads Treads Light Treads Wheel Wheel Utility Medium Storage Unit Storage Medium Storage Unit Protection Core Shielding Weapon Mining Claw Energy Gun Medium Laser Ballistic Gun Light Assault Rifle Special Weapon Mining Laser Slashing Weapon Mining Claw Build | -11 -10 -10 ------- Run | Yrd Mat Sub Slots Evolved . | . . . Power . | . . . Propulsion . | . . . Utility . | . . . Weapon . | . . . Parts Attached 23 | 7 8 8 Power 5 | 1 2 2 Engine 4 | 1 1 2 Core 1 | . 1 . Reactor . | . . . Propulsion 6 | 3 . 3 Treads 3 | 2 . 1 Leg . | . . . Wheel 3 | 1 . 2 Hover . | . . . Flight . | . . . Utility 4 | 1 3 . Device . | . . . Storage 2 | 1 1 . Processor . | . . . Hackware . | . . . Protection 2 | . 2 . Artifact . | . . . Weapon 8 | 2 3 3 Energy Gun 3 | 1 . 2 Energy Cannon . | . . . Ballistic Gun 1 | 1 . . Ballistic Cannon . | . . . Launcher . | . . . Special Weapon 1 | . 1 . Impact Weapon . | . . . Slashing Weapon 3 | . 2 1 Piercing Weapon . | . . . Special Melee Weapon . | . . . Unidentified Prototypes . | . . . Parts Lost 8 | . 2 6 Power 1 | . . 1 Propulsion 4 | . 1 3 Utility . | . . . Weapon 3 | . 1 2 Highest Loss Streak 4 | . 1 4 To Critical Strikes . | . . . Average Backups 7 | 1 6 9 Power . | . . . Propulsion . | . . . Utility 3 | . 3 5 Weapon 2 | . 2 3 Tool/Special . | . . . Unused Backups 9 | . 1 8 Power . | . . . Propulsion . | . . . Utility 6 | . 1 5 Weapon 3 | . . 3 Tool/Special . | . . . Average Slot Usage (%) 96 | . 97 95 Engine 8 | . 5 13 Core 5 | . 8 . Treads 19 | . 20 17 Wheel 7 | . 6 7 Storage 14 | . 14 14 Protection 13 | . 12 14 Energy Gun 4 | . 4 3 Ballistic Gun 4 | . 6 . Special Weapon 1 | . 1 . Slashing Weapon 18 | . 15 23 Peak Build Rating 12 | 6 10 12 Average Rating 8 | 4 8 8 On Entrance 4 | . 6 8 Naked Turns . | . . . Heaviest Build 23 | 13 20 23 Greatest Support 40 | 40 40 40 Greatest Overweight (x) 1 | . 1 1 Average Overweight (x) . | . . . Largest Inventory Capacity 10 | 8 10 10 Average Capacity 9 | 6 9 10 Most Carried 10 | 2 10 10 Average Carried 7 | 1 6 9 Final Capacity 10 | 8 10 10 Final Carried 10 | 2 10 9 Class Distribution -------------------- 95% | Mutant 4% | Scavenger-Mutant Dominant Class ---------------- Mutant | -10/Materials Mutant | -10/Subcaves Resources | -11 -10 -10 ----------- Run | Yrd Mat Sub Matter Collected 547 | 171 306 70 Remotely . | . . . Salvage Created 973 | . 818 155 Parts 56 | . 43 13 Haulers Intercepted 1 | . 1 . Recyclers Shooed 2 | . 2 . Parts Field Recycled . | . . . Retrieved Matter . | . . . Parts Self-Destructed . | . . . Prevented . | . . . Kills | -11 -10 -10 ------- Run | Yrd Mat Sub Combat Hostiles Destroyed 16 | . 12 4 Melee 9 | . 6 3 Guns 6 | . 5 1 Cannons 1 | . 1 . Classes Destroyed 7 | . 6 1 Builder 2 | . 2 . Hauler 1 | . 1 . Recycler 4 | . 4 . Mechanic 1 | . 1 . Watcher 1 | . 1 . Grunt 12 | . 12 . Subdweller 4 | . . 4 Best Kill Streak 5 | . 5 1 Combat Bots Only 2 | . 2 1 Max Kills in Single Turn 1 | . 1 1 Gunslinging . | . . . Exploded . | . . . Melee 1 | . 1 1 Uniques/NPCs Destroyed . | . . . Combat | -11 -10 -10 -------- Run | Yrd Mat Sub Hostile Shots Fired 113 | . 68 45 Missed 29 | . 17 12 Hits 84 | . 51 33 Projectile 84 | . 51 33 AOE 1 | . . 1 Critical Strikes 3 | . 2 1 Actively Blocked 1 | . . 1 Damage Taken 1399 | . 699 700 Core 266 | . 124 142 Absorbed by Shields . | . . . Redirected to Shielding 44 | . 16 28 Regen/Repaired (Parts) 133 | . 133 . Core Remaining (%) 100 | 100 . . Volleys Fired 45 | . 43 2 Largest 2 | . 2 2 Hottest 125 | . 100 125 Shots Fired 82 | . 79 3 Gun 76 | . 73 3 Cannon . | . . . Launcher . | . . . Special 6 | . 6 . Kinetic 37 | . 37 . Thermal 45 | . 42 3 Explosive . | . . . Electromagnetic . | . . . Robot Hit Streak 6 | . 6 2 Robot Miss Streak 4 | . 4 1 Penetration Max . | . . . Secondary Targets 1 | . 1 . Max Gunslinging Chain 1 | . 1 . Shots Hit Robots 75 | . 51 24 Core Hits 37 | . 30 7 Critical Kills . | . . . Critical Parts Destroyed . | . . . Critical Strikes 1 | . 1 . Burn 1 | . 1 . Melee Attacks 66 | . 21 45 Impact . | . . . Slashing 66 | . 21 45 Piercing . | . . . Sneak Attacks 3 | . 3 . Combat Hostiles . | . . . Follow-up Attacks 1 | . . 1 Damage Inflicted 1416 | . 999 417 Guns 443 | . 405 38 Cannons . | . . . Explosions 92 | . 92 . Melee 785 | . 406 379 Ramming . | . . . Kinetic 166 | . 166 . Thermal 465 | . 427 38 Explosive . | . . . Electromagnetic . | . . . Impact . | . . . Slashing 785 | . 406 379 Piercing . | . . . Highest Corruption . | . . . Average Corruption . | . . . Corruption Purged . | . . . Corruption Blocked . | . . . Overload Shots . | . . . Overflow Damage 65 | . 65 . Projectiles . | . . . Explosions . | . . . Melee 65 | . 65 . Knockbacks . | . . . Impact . | . . . Kinetic . | . . . Secondary . | . . . Self-Inflicted Damage 88 | . 88 . Shots 1 | . 1 . Rammed . | . . . Targets Rammed . | . . . Kicked . | . . . Crushed . | . . . Highest Temperature 276 | . 276 1 Average Temperature 99 | . 100 1 Received Heat Transfer 561 | . 375 186 Effects 3 | . 3 . Energy Bleed 1 | . 1 . Interference 2 | . 2 . Siege Activations . | . . . Martial Activations . | . . . Shielding Activations . | . . . Robots Disrupted . | . . . Combat Hostiles . | . . . Robots Corrupted . | . . . Combat Hostiles . | . . . Parts Fried . | . . . Impact Corruptions . | . . . Robots Melted . | . . . Combat Hostiles . | . . . Parts Melted 3 | . 2 1 Heat Transferred 1089 | . 1027 62 Parts Sabotaged . | . . . Parts Stolen . | . . . Parts Stripped . | . . . Power Chain Reactions . | . . . Alert | -11 -10 -10 ------- Run | Yrd Mat Sub Maximum Alert Level . | . . . Low Security (%) 100 | 100 100 . Level 1 . | . . . Level 2 . | . . . Level 3 . | . . . Level 4 . | . . . Level 5 . | . . . High Security . | . . . Max Security . | . . . Peak Influence 193 | . 193 . Initial . | . . . Average 107 | . 118 . Influence Increases 490 | . 490 . Destroy 0b10 Robot/C 240 | . 240 . Destroy 0b10 Robot/NC 45 | . 45 . Destroy Leader 54 | . 54 . Successful Hack 7 | . 7 . Disable Machine 105 | . 105 . Destroy Structure 39 | . 39 . Influence Decreases 490 | . 382 108 Entered New Map 52 | . . 52 Time Decay 427 | . 371 56 Lost Part 11 | . 11 . Squads Dispatched 5 | . 5 . Investigation 3 | . 3 . Extermination . | . . . Reinforcement 2 | . 2 . Assault . | . . . Garrison . | . . . Intercept . | . . . Searches Triggered . | . . . Construction Impeded . | . . . Haulers Reinforced . | . . . Active Scanning Responses . | . . . Cargo Convoy Interrupts . | . . . Stealth | -11 -10 -10 --------- Run | Yrd Mat Sub Distress Signals 1 | . 1 . Communications Jammed . | . . . Distress Signals . | . . . Times Spotted 26 | . 21 5 Peak Tracking Total 3 | . 3 2 Tactical Retreats . | . . . Traps | -11 -10 -10 ------- Run | Yrd Mat Sub Traps Triggered 2 | . 2 . Indirectly . | . . . Trap Hack Attempts . | . . . Triggered . | . . . Disarmed . | . . . Reprogrammed . | . . . Reused . | . . . Traps Extracted . | . . . Installed . | . . . Triggered . | . . . Machines | -11 -10 -10 ---------- Run | Yrd Mat Sub Machines Disabled 7 | . 7 . Max in Single Turn 7 | . 7 . Machines Repaired . | . . . Machines Dismantled . | . . . Machines Sabotaged . | . . . Overloaded Fab Kills . | . . . Hacking | -11 -10 -10 --------- Run | Yrd Mat Sub Machines Accessed 5 | . 3 2 Terminals 2 | . 2 . Fabricators . | . . . Repair Stations 1 | . 1 . Recycling Units . | . . . Scanalyzers . | . . . Garrison Access . | . . . Total Hacks 9 | . 6 3 Successful 6 | . 3 3 Failed 2 | . 2 . Catastrophic 1 | . 1 . Database Lockouts 1 | . 1 . Manual 5 | . 5 . Terminals 4 | . 4 . Fabricators . | . . . Repair Stations 2 | . 2 . Recycling Units . | . . . Scanalyzers . | . . . Garrison Access . | . . . Terminal Hacks 4 | . 1 3 Record 1 | . . 1 Part Schematic 1 | . 1 . Open Door 1 | . . 1 Release Object 1 | . . 1 Fabricator Hacks . | . . . Repair Station Hacks 2 | . 2 . Scan Component 1 | . 1 . Repair 1 | . 1 . Recycling Unit Hacks . | . . . Scanalyzer . | . . . Garrison Access Hacks . | . . . Unauthorized Hacks . | . . . Terminals . | . . . Fabricators . | . . . Repair Stations . | . . . Recycling Units . | . . . Scanalyzers . | . . . Garrison Access . | . . . Data Cores Recovered . | . . . Used . | . . . Hacking Detections 3 | . 3 . Full Trace Events 2 | . 2 . Feedback Events . | . . . Feedback Blocked . | . . . Robot Schematics Acquired . | . . . Robots Built . | . . . Authchips . | . . . Time . | . . . Total Robot Build Rating . | . . . Part Schematics Acquired 1 | . 1 . Parts Built . | . . . Authchips . | . . . Time . | . . . Total Part Build Rating . | . . . Parts Repaired 1 | . 1 . Time 26 | . 26 . Parts Recycled . | . . . Recycled Matter . | . . . Retrieved Matter . | . . . Retrieved Components . | . . . Parts Scanalyzed . | . . . Part Schematics Acquired . | . . . Parts Damaged . | . . . Bothacking | -11 -10 -10 ------------ Run | Yrd Mat Sub Used RIF Installer . | . . . Robots Hacked . | . . . Non-combat . | . . . Combat . | . . . Robot Hacks Applied . | . . . Relay Couplers Released . | . . . Fabnet Peak Effective % . | . . . Robots Rewired . | . . . Allies Hacked . | . . . Hacks Repelled . | . . . Allies | -11 -10 -10 -------- Run | Yrd Mat Sub Total Allies . | . . . Largest Group . | . . . Highest-Rated Group . | . . . Highest-Rated Ally . | . . . Total Orders . | . . . Ally Attacks . | . . . Total Damage . | . . . Kills . | . . . Allies Corrupted . | . . . Allies Melted . | . . . Intel | -11 -10 -10 ------- Run | Yrd Mat Sub Active Infowar (turns) . | . . . Robot Analysis Total . | . . . Derelict Logs Recovered 1 | . . 1 Drone Launches . | . . . Drone Recoveries . | . . . Exploration | -11 -10 -10 ------------- Run | Yrd Mat Sub Turns Passed 1730 | 120 1081 529 Spaces Moved 910 | 72 534 304 Core 7 | 7 . . Treads 556 | 64 388 104 Legs . | . . . Wheels 347 | 1 146 200 Hover . | . . . Flight . | . . . Fastest Speed 50 | 50 95 95 Average Speed 135 | 148 142 120 Slowest Speed 160 | 160 160 160 Overloaded Moves . | . . . Propulsion Burnouts . | . . . Robots Hopped . | . . . Potential Cave-ins . | . . . Cave-ins Triggered . | . . . Exploration Rate (%) 31 | 5 65 23 Regions Visited 2 Branch Regions 1 Pre-discovered Areas 1 | . . 1 Known Exits Taken . | . . . Unknown Exits Taken 2 | 1 1 . Scrap Searched . | . . . Spaces Dug . | . . . Terrain Destroyed 36 | . 36 . Melee . | . . . Projectile 2 | . 2 . AOE 34 | . 34 . Terrain Rammed . | . . . Walls Destroyed . | . . . Machines Disabled . | . . . Actions | -11 -10 -10 --------- Run | Yrd Mat Sub Total 1198 | 83 733 382 Wait 129 | 1 104 24 Move 908 | 71 533 304 Hop . | . . . Pick Up 17 | 1 14 2 Fast Attach 14 | 7 5 2 Attach 9 | 1 4 4 Detach 3 | 2 1 . Swap 6 | . 4 2 Drop 8 | . 7 1 Fire 45 | . 43 2 Melee 58 | . 18 40 Ram . | . . . Kick . | . . . Crush . | . . . Escape Stasis . | . . . Rewire . | . . . Trap . | . . . Miscellaneous 1 | . . 1 Route ------- -11/Scrapyard -10/Materials (discovered 3 exits: [*Mat x2] / *Sub) -10/Subcaves History --------- Turn | Location | Event 17 | -11/Scrapyard | Discovered new exit (range 15) 121 | -11/Scrapyard | Entered Materials 355 | -10/Materials | Build established: Mutant 596 | -10/Materials | Discovered new exit (range 13) 888 | -10/Materials | Discovered new exit (range 14) 928 | -10/Materials | Central database locked down 1180 | -10/Materials | Repaired Lgt. Treads 1194 | -10/Materials | Discovered new exit (range 9) 1202 | -10/Materials | Entered Subcaves 1205 | -10/Subcaves | Learned location of Zion (-7) 1257 | -10/Subcaves | Released subatomizers from SUBCON Basin 1345 | -10/Subcaves | Core integrity fell below 50% 1514 | -10/Subcaves | Shifting Twisted Machinery released Piercing Trap 1537 | -10/Subcaves | Shifting Twisted Machinery released Sub. Monowheel 1642 | -10/Subcaves | Core integrity fell below 20% 1678 | -10/Subcaves | Lost 4 parts (1p2n1w) 1731 | -10/Subcaves | Destroyed by CH-MHD(R) with Subdweller Machine Gun Last Messages --------------- 01612_ Sub. Power Source melted. 01612_ XI-J2V(R) destroyed. 01617_ Lgt. Treads destroyed. 01620_ YZ-8I1(R) affixes Scrap Shield Fragment to Scrap Shield. 01624_ Sub. Power Source shoots sparks and powers down. 01638_ YZ-8I1(R) affixes Scrap Shield Fragment to Scrap Shield. 01643_ Lgt. Treads destroyed. 01647_ Broken Sub. Power Source destroyed. 01650_ YZ-8I1(R) Sub. Laser ripped off. 01661_ YZ-8I1(R) destroyed. 01663_ Acquired 30 matter. 01665_ Acquired Sub. Laser. 01668_ Subatomizers dissect the Sub. Laser. 01668_ Acquired Sub. Laser. 01682_ Acquired Sub. Monowheel. 01683_ Acquired 20 matter. 01729_ CH-MHD(R): "MADSUB!" Map ----- +----------------------------------------------------+ | ?????????????????????????????????????????????????? | | ?????????????????????????????????????????????????? | | ?????????????????????????????????????????????????? | | ?????????????????????????????????????????????????? | | ????#####??????????????###???????????????????????? | | ????# ##?#####??????? #???????????????????????? | | ?????# ### ##?????? #####???????????????????? | | ?????# ## #?????? ???????????????????? | | ?????# #?????# ????????????????????? | | ?##### ## #????## ??????????????????????? | | ## # ## ##??## #???????????????????????? | | # #### #????????????????????????? | | ## #????????????????????????? | | # ####?????????????????????? | | # # #?????????????????????? | | # ## ##### #?????????????????????? | | ## #???##### ##????????????????????? | | ### #???????### #????????????????????? | | ##?### #?????????# #????????????????????? | | ##???# ?????????# #???? #??????????????? | | &%## ## #??## ## ?????????? | | !&! #### ?????????? | | " ##??????# "" ## "" ?????????? | | # ## #???????# ""## #??" "## #??????????? | | #####? ##??????# ""### ##?? ##????????????????? | | "#????? ????????# #??#|@=#?????????????????????? | | "#????? ????????# #???# * #????????????????????? | | ""????? ?????????# ????##R #???????????????????? | | ##?????????????????????? ###???????????????????? | | ????????????????????????# ?????????????????????? | | ????????????????????????" #????????????????????? | | ????????????????????????" #????????????????????? | | ????????????????????????"" ????????????????????? | | ???????????????????????? " ????????????????????? | | ????????????????????????"" ???????????????????? | | ???????????????????????? ???????????????????? | | ???????????????????????? ? ###??????????????????? | | ?????????????????????????? #????????????????????? | | ?????????????????????????? ##????????????????????? | | ??????????????????????????#??????????????????????? | | ?????????????????????????????????????????????????? | | ?????????????????????????????????????????????????? | | ?????????????????????????????????????????????????? | | ?????????????????????????????????????????????????? | | ?????????????????????????????????????????????????? | | ?????????????????????????????????????????????????? | | ?????????????????????????????????????????????????? | | ?????????????????????????????????????????????????? | | ?????????????????????????????????????????????????? | | ?????????????????????????????????????????????????? | +----------------------------------------------------+ Best States ------------- Heat Dissipation 25 Energy Generation 15 Energy Capacity 250 Matter Stores 300 Matter Capacity 300 Sight Range 16 Terrain Scan Density 10 Core Shielding 20 Utility Shielding 33 Evasion (%) 41 Recoil Reduction 2 Item Schematics ----------------- Tractor Beam | -10/Materials | Hacked Robot Schematics ------------------ None Fabricated ------------ Nothing Repaired ---------- Lgt. Treads | 5% | -10/Materials Alien Tech Used ----------------- None Achievements -------------- None Challenges ------------ None Game ------ Seed SeismicCobblerBrace Manual? 0 Play Time 00:21:14 Cumulative 5.3 hours Start 2025.10.12 @ 16:31:37 End 2025.10.12 @ 16:49:12 Sessions 1 Manual Loads 0 Difficulty Rogue Special Mode None Game No. 9 Rogue 9 Adventurer 0 Explorer 0 Win Type - Total 0 Types 0/0/0/0/0/0/0/0/0/0 Lore% 11 Gallery% 18 Achievement% 41 Wizard Run 0 Options --------- Layout 1 ASCII 0 Keyboard 1 Movement Numpad Keybinds 0 Fullscreen 2 Font 24/Smallcaps Map View 50x35 Zoom Use 0% Tactical HUD 1 Map Filters NONE Filters NONE Steam 1 RUN: 40c93f80-47a4-4cd7-9814-12cb9b0db685